bitfinex/quotes_ETHUSD_20241231
["timestamp","ask_amount","ask_price","bid_price","bid_amount"]
[1735604202757,0.05173407,3364.6,3364.5,2.97218]
[1735604202965,0.7822,3365.0,3364.5,2.97218]
[1735604203215,0.05173407,3364.6,3364.5,2.97218]
[1735604203383,0.7822,3365.0,3364.5,2.97218]
[1735604203578,0.05173407,3364.6,3364.5,2.97218]
[1735604203791,0.7822,3365.0,3364.5,2.97218]
[1735604204179,0.05173407,3364.9,3364.5,2.97218]
[1735604204993,0.05173407,3364.9,3364.2,3.0]
[1735604205330,0.55,3364.8,3364.1,2.97254]
[1735604205628,0.55,3364.9,3364.1,2.97254]
[1735604205833,0.05173407,3364.7,3364.1,2.97254]
[1735604206127,0.05173407,3364.6,3364.1,2.97254]
[1735604206321,0.55,3364.9,3364.1,2.97254]
[1735604206523,0.05089297,3364.5,3364.1,2.97254]
[1735604206829,0.05089297,3364.5,3364.3,3.0]
[1735604207127,0.05089297,3364.4,3364.3,3.0]
[1735604207327,0.55,3364.9,3364.3,3.0]
[1735604207524,0.05089297,3364.4,3364.3,3.0]
[1735604207712,0.55,3364.9,3364.3,3.0]
[1735604207913,0.05089297,3364.4,3364.3,3.0]
[1735604208318,0.8226,3364.4,3363.6,2.97292]
[1735604208485,0.55,3364.3,3363.6,2.973]
[1735604208686,0.05005855,3364.2,3363.8,3.0]
[1735604209030,0.55,3364.3,3363.7,3.0]
[1735604209202,0.05005855,3364.1,3363.7,3.0]
[1735604209397,0.55,3364.3,3363.7,3.0]
[1735604209615,0.55,3364.3,3363.7,2.97291]
[1735604209811,0.05005855,3364.2,3363.7,2.97291]
[1735604212963,0.05005855,3364.2,3363.4,3.0]
[1735604213258,0.05005855,3364.2,3363.6,3.0]
[1735604213464,0.05005855,3364.2,3363.8,2.97278]
[1735604213958,0.55,3364.3,3363.8,2.97278]
[1735604213959,0.04744705,3364.1,3363.8,2.97278]
[1735604214318,0.55,3364.3,3363.9,2.97266]
[1735604214516,0.04744705,3364.0,3363.9,2.97266]
[1735604214704,0.55,3364.3,3363.9,2.97266]
[1735604214971,0.04744705,3364.0,3363.9,2.97266]
[1735604215253,0.55,3364.3,3363.9,2.97266]
[1735604215401,0.04594001,3364.0,3363.9,2.97266]
[1735604215602,0.55,3364.3,3363.9,2.97266]
[1735604215815,0.04601384,3364.0,3363.9,2.97266]
[1735604216022,0.55,3364.3,3363.9,2.97266]
[1735604216215,0.04601384,3364.0,3363.9,6.569926]
[1735604216552,2.02149635,3364.7,3364.2,2.97245]
[1735604217045,0.04601384,3364.6,3364.0,3.0]
[1735604217247,0.04601384,3364.6,3364.5,2.9722]
[1735604218062,1.24639635,3364.8,3364.5,2.9722]
[1735604218202,0.04601384,3364.6,3364.5,3.26942]
[1735604218405,0.7751,3365.0,3364.5,3.26942]
[1735604218605,0.04601384,3364.6,3364.5,3.26942]
[1735604218816,0.7751,3365.0,3364.7,2.97196]
[1735604219034,0.7751,3365.2,3364.9,2.97185]
[1735604220905,0.7751,3365.2,3364.7,2.97199]
[1735604221317,0.7751,3365.2,3364.8,2.97191]
[1735604222541,0.7751,3365.2,3364.9,3.0]
[1735604224110,0.55,3365.1,3364.7,3.0]
[1735604224310,0.55,3365.1,3364.6,3.0]
[1735604226059,0.55,3365.1,3364.2,3.0]
[1735604226361,0.55,3365.1,3364.6,2.97205]
[1735604227011,0.55,3365.1,3364.7,3.0]
[1735604230319,0.55,3365.1,3364.3,3.361]
[1735604230665,0.55,3365.1,3364.8,2.97194]
[1735604231953,0.04649541,3365.0,3364.8,2.97194]
[1735604232153,0.04649541,3365.0,3364.3,0.361]
[1735604232360,0.04649541,3365.0,3364.9,2.97185]
[1735604232661,0.7751,3365.2,3365.1,2.97167]
[1735604234281,1.24639635,3365.4,3365.3,2.9715]
[1735604236340,1.24639635,3365.8,3365.5,2.97131]
[1735604236547,1.24639635,3365.8,3365.1,0.297167]
[1735604236862,1.24639635,3365.8,3365.3,2.97147]
[1735604236863,0.8198,3365.7,3365.3,2.97147]
[1735604237387,1.24639635,3365.8,3365.0,0.61]
[1735604237688,1.54359847,3365.7,3365.6,2.9712]
[1735604238069,1.59070918,3365.7,3365.6,2.9712]
[1735604238296,1.59070918,3365.7,3365.4,2.9714]
[1735604238948,0.04711071,3365.7,3365.4,2.9714]
[1735604239177,1.24639635,3365.9,3365.4,2.9714]
[1735604239387,0.04711071,3365.6,3365.4,2.9714]
[1735604239585,0.55,3365.8,3365.2,2.97156]
[1735604239784,0.04711071,3365.5,3365.3,2.97147]
[1735604239982,0.8265,3365.7,3365.3,2.97147]
[1735604240180,0.04711071,3365.4,3365.3,2.97147]
[1735604240488,0.8265,3365.7,3365.3,3.268617]
[1735604240648,0.04711071,3365.4,3365.3,2.97147]
[1735604240851,0.8265,3365.7,3365.3,2.97147]
[1735604241354,0.04711071,3365.6,3365.3,2.97147]
[1735604241985,0.04711071,3365.6,3364.9,2.97185]
[1735604242185,0.04711071,3365.6,3365.1,2.97165]
[1735604242389,0.04711071,3365.6,3364.9,2.97185]
[1735604242591,0.04711071,3365.6,3365.3,2.97146]
[1735604243402,0.04711071,3365.6,3365.0,0.358185]
[1735604243403,0.55,3365.5,3365.0,0.358185]
[1735604243699,0.55,3365.3,3364.8,2.97194]
[1735604244078,0.04711071,3365.2,3364.9,2.97182]
[1735604244398,0.55,3365.3,3364.9,2.97182]
[1735604244579,0.04711071,3365.1,3364.9,2.97182]
[1735604244783,0.55,3365.3,3364.9,2.97182]
[1735604245169,0.04743831,3365.2,3364.9,2.97182]
[1735604245585,0.55,3365.3,3364.9,2.97182]
[1735604245786,0.04743831,3365.1,3364.9,2.97182]
[1735604245981,0.55,3365.3,3364.9,2.97182]
[1735604246180,0.04743831,3365.0,3364.7,2.972]
[1735604246349,0.55,3365.1,3364.7,2.972]
[1735604246549,0.8265,3364.8,3363.6,2.48288633]
[1735604246796,0.55,3364.4,3363.6,1.87288633]
[1735604246970,0.55,3364.4,3363.8,4.22141088]
[1735604247173,0.55,3364.4,3363.8,2.97282]
[1735604247359,0.04743831,3364.3,3363.8,2.97282]
[1735604247557,0.55,3364.4,3363.8,2.97282]
[1735604247884,0.04743831,3364.2,3363.8,2.97282]
[1735604248062,0.55,3364.4,3363.8,2.97282]
[1735604248460,0.04743831,3364.3,3363.8,2.97282]
[1735604249236,0.8265,3364.2,3363.8,2.97282]
[1735604249602,0.55,3364.1,3363.6,3.0]
[1735604249805,0.55,3364.1,3363.4,0.361]
[1735604249806,0.59743831,3364.1,3363.4,0.361]
[1735604250108,0.59743831,3364.1,3363.3,0.61]
[1735604250578,0.59743831,3364.1,3363.7,2.97291]
[1735604257136,0.55,3363.7,3362.7,2.97373]
[1735604257326,0.55,3363.7,3363.0,2.97346]
[1735604257327,0.58440468,3363.7,3363.0,2.97346]
[1735604257505,0.55,3363.5,3362.8,2.97367]
[1735604257715,0.55,3363.3,3362.5,4.22249088]
[1735604258126,0.55,3363.1,3362.5,4.22249088]
[1735604258359,0.7677,3363.0,3362.6,2.97388]
[1735604258533,0.55,3362.9,3362.5,1.24859088]
[1735604258740,0.55,3362.9,3362.3,2.97409]
[1735604259059,0.55,3362.5,3362.0,2.97436]
[1735604259259,0.55,3362.3,3361.8,2.97457]
[1735604259616,0.55,3362.1,3361.6,4.22333088]
[1735604260237,0.04482922,3362.0,3361.6,2.97474]
[1735604260460,0.04482922,3362.0,3361.3,3.0]
[1735604260611,0.04482922,3362.0,3361.8,2.97456]
[1735604260796,0.55,3362.1,3362.0,2.97441]
[1735604261336,0.59482922,3362.1,3361.8,2.97459]
[1735604261513,0.59482922,3362.1,3361.5,2.97479]
[1735604261713,0.59482922,3362.1,3361.8,2.97458]
[1735604263272,0.04482922,3362.1,3361.5,0.7518378]
[1735604263569,0.7677,3362.2,3362.1,2.97433]
[1735604265629,0.7677,3362.2,3361.9,2.97448]
[1735604267815,0.55,3362.1,3361.5,2.97479]
[1735604268125,0.55,3361.9,3361.5,2.97479]
[1735604268844,0.55,3361.9,3361.3,3.0]
[1735604268845,0.04312861,3361.8,3361.3,3.0]
[1735604269011,0.04312861,3361.8,3361.7,2.97468]
[1735604269217,0.55,3362.1,3361.7,2.97468]
[1735604269647,0.55,3361.9,3361.7,2.97468]
[1735604270075,0.55,3362.1,3361.7,2.97468]
[1735604270272,0.04312861,3361.8,3361.7,2.97468]
[1735604270467,0.55,3362.1,3361.7,2.97468]
[1735604270821,0.55,3361.9,3361.7,2.97468]
[1735604271159,0.7677,3362.2,3361.8,2.97456]
[1735604271388,0.7677,3362.2,3361.9,2.9745]
[1735604272541,0.7677,3362.2,3361.7,2.97465]
[1735604272934,0.7677,3362.2,3361.4,0.597508]
[1735604273150,0.7677,3362.2,3361.9,2.97449]
[1735604274038,1.3789,3362.7,3361.3,0.61]
[1735604274239,1.3789,3362.7,3361.4,2.97495]
[1735604274544,1.3789,3362.7,3362.0,2.97437]
[1735604275987,2.38430914,3362.7,3362.0,2.97437]
[1735604276156,2.38430914,3362.7,3361.8,2.97457]
[1735604276888,0.55,3362.5,3361.8,2.97457]
[1735604277382,0.55,3362.3,3361.4,2.97486]
[1735604277591,0.55,3362.1,3361.4,2.97494]
[1735604277989,0.55,3361.9,3361.4,2.97494]
[1735604278679,0.0414417,3361.8,3361.4,2.97494]
[1735604280271,0.0414417,3361.8,3361.7,2.97468]
[1735604280795,0.55,3362.0,3361.5,2.97482]
[1735604280964,0.74289,3362.0,3361.5,2.97482]
[1735604281162,0.0414417,3361.9,3361.5,2.97482]
[1735604283801,0.0414417,3361.9,3361.5,2.97479]
[1735604284517,0.0414417,3361.9,3361.6,2.97475]
[1735604284719,0.0414417,3361.9,3361.2,2.97512]
[1735604285531,0.0414417,3361.9,3361.6,2.97475]
[1735604286519,0.0414417,3361.9,3361.6,3.272225]
[1735604287149,0.0414417,3361.9,3361.7,2.97468]
[1735604287302,0.0414417,3361.9,3361.4,2.97487]
[1735604288256,0.0414417,3361.9,3361.6,2.9747]
[1735604290956,0.0414417,3361.9,3361.7,2.97463]
[1735604291257,0.0414417,3361.9,3361.8,2.97459]
[1735604291424,0.8289,3362.1,3361.8,3.272049]
[1735604291631,0.0414618,3361.9,3361.8,2.97459]
[1735604291796,0.8289,3362.1,3361.8,2.97459]
[1735604291996,0.0414618,3361.9,3361.8,2.97459]
[1735604292244,0.8289,3362.1,3361.8,2.97459]
[1735604292551,0.0414618,3361.9,3361.8,2.97459]
[1735604292842,0.0414618,3361.9,3361.0,0.61]
[1735604292843,0.0414618,3361.9,3361.5,2.97478]
[1735604293006,0.0414618,3361.9,3361.6,2.97473]
[1735604293207,0.0414618,3361.9,3361.8,2.97459]
[1735604294229,0.0414618,3361.9,3361.6,2.97475]
[1735604294648,0.0414618,3361.9,3361.4,2.97491]
[1735604294649,0.55,3361.8,3361.4,2.97491]
[1735604294954,0.7878,3361.7,3361.4,2.97491]
[1735604295517,0.04153557,3361.6,3361.4,2.97491]
[1735604295711,0.7878,3361.7,3361.5,2.97486]
[1735604297056,0.7878,3361.7,3361.0,0.61]
[1735604297263,0.7878,3361.7,3361.6,2.97477]
[1735604299262,0.7878,3361.7,3361.1,2.97521]
[1735604299463,0.7878,3361.7,3361.4,2.97492]
[1735604300569,0.7878,3361.7,3361.5,2.97483]
[1735604301519,0.7878,3361.7,3361.2,2.97504]
[1735604301520,0.55,3361.6,3361.2,2.97504]
[1735604301720,0.55,3361.6,3360.7,0.61]
[1735604301969,0.04150205,3361.5,3361.3,2.97503]
[1735604303026,0.04150205,3361.5,3360.8,2.70164136]
[1735604303231,1.24639635,3361.9,3361.8,2.97459]
[1735604304639,2.57377798,3361.9,3361.8,2.97459]
[1735604306245,0.55,3361.8,3361.5,2.97485]
[1735604307004,0.55,3361.6,3361.5,2.97485]
[1735604307644,0.59012944,3361.6,3361.5,2.97485]
[1735604308306,0.8105,3361.5,3361.2,2.97506]
[1735604308610,0.8105,3361.5,3361.4,2.97495]
[1735604309805,4.63147243,3361.5,3361.4,2.97495]
[1735604310901,3.82097243,3361.5,3361.4,2.97495]
[1735604315205,4.37097243,3361.5,3361.0,3.0]
[1735604315406,3.82097243,3361.5,3361.3,2.97503]
[1735604315611,4.37097243,3361.5,3361.4,2.97495]
[1735604317087,3.12519913,3361.5,3361.4,2.97495]
[1735604322097,3.16363324,3361.5,3361.4,2.97495]
[1735604323610,5.03121928,3361.5,3361.4,2.97495]
[1735604334171,3.16363324,3361.5,3361.4,2.97495]
[1735604335710,0.55,3361.4,3361.2,2.97504]
[1735604335873,0.55,3361.4,3360.9,2.97538]
[1735604336206,0.03845428,3361.3,3361.0,2.9753]
[1735604337183,2.61365341,3361.3,3361.0,2.9753]
[1735604337563,2.61365341,3361.3,3361.2,2.97512]
[1735604338608,0.03845428,3361.3,3361.2,2.97512]
[1735604338811,0.03845428,3361.3,3361.0,2.97529]
[1735604338812,0.55,3361.2,3361.0,2.97529]
[1735604339165,0.03843411,3361.1,3361.0,2.97529]
[1735604339397,0.58843411,3361.1,3361.0,2.97529]
[1735604340770,0.58843411,3361.1,3360.3,1.85859088]
[1735604340771,0.55,3361.0,3360.3,1.85859088]
[1735604341112,1.3826,3360.8,3360.5,2.97571]
[1735604341488,1.3826,3360.8,3360.3,1.24859088]
[1735604341683,0.03834013,3360.7,3360.4,2.97582]
[1735604342017,1.3826,3360.8,3360.4,2.97582]
[1735604342216,0.03834013,3360.6,3360.4,2.97582]
[1735604342421,1.94827854,3360.8,3360.4,2.97582]
[1735604342569,0.03834013,3360.5,3360.4,2.97582]
[1735604342774,1.94827854,3360.8,3360.4,2.97582]
[1735604343072,0.55,3360.6,3360.5,2.97569]
[1735604343307,4.37075158,3360.6,3360.5,2.97569]
[1735604343717,4.40909171,3360.6,3360.5,2.97569]
[1735604344495,4.40909171,3360.6,3360.3,2.97588]
[1735604344814,4.40909171,3360.6,3360.4,2.97582]
[1735604345315,2.86407178,3360.6,3360.4,2.97582]
[1735604345883,0.55,3360.3,3360.1,2.97607]
[1735604346276,0.03834013,3360.2,3360.1,2.97607]
[1735604346477,0.55,3360.3,3360.1,2.97607]
[1735604346720,0.03834013,3360.2,3359.9,2.97624]
[1735604346922,0.03834013,3360.2,3360.0,2.97613]
[1735604347125,0.8261,3360.0,3359.4,2.97668]
[1735604347420,0.03440468,3359.9,3359.4,2.97668]
[1735604347624,0.03440468,3359.9,3359.7,2.97642]
[1735604347869,0.0376619,3359.9,3359.7,2.97642]
[1735604348909,0.0376619,3359.9,3359.1,0.61]
[1735604349109,0.0376619,3359.9,3359.8,2.97636]
[1735604349300,1.24571837,3360.1,3359.8,2.97636]
[1735604349518,0.0376619,3359.9,3359.8,2.97636]
[1735604349697,0.8261,3359.9,3359.6,2.97653]
[1735604350027,0.8637619,3359.9,3359.4,2.97663]
[1735604350238,0.55,3359.8,3359.4,2.97663]
[1735604350403,0.74637619,3359.8,3359.4,2.97663]
[1735604350808,0.0376619,3359.7,3359.4,2.97663]
[1735604351030,0.55,3359.5,3358.7,2.97728]
[1735604351342,0.55,3359.5,3358.6,1.24859088]
[1735604351343,0.55,3359.2,3358.8,2.97716]
[1735604351687,0.03478902,3359.1,3358.8,2.97716]
[1735604351887,0.03478902,3359.1,3358.3,0.7779072]
[1735604352114,0.8261,3359.3,3359.0,2.97707]
[1735604353033,0.8261,3359.3,3358.4,3.0]
[1735604353233,0.8261,3359.3,3358.7,2.97725]
[1735604353434,0.55,3359.2,3358.7,2.97725]
[1735604353902,0.8261,3359.3,3358.3,0.7779072]
[1735604354086,0.8261,3359.6,3359.1,2.97691]
[1735604354290,0.8261,3359.6,3359.0,2.97707]
[1735604354490,0.8261,3359.6,3359.2,2.97682]
[1735604354892,0.8261,3359.6,3359.2,2.97681]
[1735604357095,0.03440468,3359.9,3359.3,0.297681]
[1735604357438,1.24571837,3360.3,3359.9,2.9762]
[1735604358455,0.8261,3360.4,3359.9,2.9762]
[1735604359623,0.7654,3360.5,3359.8,3.61]
[1735604359822,0.7654,3360.5,3360.1,2.97608]
[1735604360341,0.55,3360.4,3359.9,2.97624]
[1735604361436,0.03440468,3360.3,3359.4,0.61]
[1735604361609,0.55,3360.4,3359.4,0.61]
[1735604361818,0.55,3360.4,3359.8,2.97635]
[1735604362046,0.55,3360.4,3359.4,3.61]
[1735604362344,0.55,3360.4,3359.6,2.97654]
[1735604362515,0.55,3360.4,3360.0,2.9761]
[1735604363054,0.03249958,3360.3,3360.2,2.97601]
[1735604363347,1.24571837,3361.1,3360.9,2.97532]
[1735604363496,1.24571837,3361.1,3360.3,0.61]
[1735604363497,1.24571837,3361.1,3361.0,2.9753]
[1735604364304,1.24571837,3361.1,3361.0,4.180379]
[1735604364500,0.7654,3361.8,3361.1,2.97513]
[1735604364754,0.7654,3361.8,3361.0,1.205079]
[1735604365046,0.55,3361.7,3361.0,2.97527]
[1735604365243,0.7654,3361.8,3360.8,3.0]
[1735604365454,0.7654,3361.8,3361.3,2.97502]
[1735604365621,0.55,3361.7,3361.3,2.97502]
[1735604365815,0.7654,3361.8,3361.3,2.97502]
[1735604366448,0.55,3361.7,3361.3,2.97502]
[1735604366954,0.55,3361.5,3361.3,2.97502]
[1735604367329,0.55,3361.7,3361.3,2.97502]
[1735604367577,0.55,3361.7,3361.4,2.97492]
[1735604367875,0.7654,3361.8,3361.6,2.97475]
[1735604369675,0.55,3361.7,3360.8,5.97548]
[1735604370010,0.55,3361.7,3361.3,2.97501]
[1735604370933,0.55,3361.7,3360.8,3.0]
[1735604370934,0.55,3361.7,3361.5,2.97485]
[1735604372934,0.55,3361.7,3361.0,2.97525]
[1735604373136,0.55,3361.7,3361.4,2.97492]
[1735604375792,0.55,3361.7,3361.6,2.97477]
[1735604376790,0.55,3361.7,3361.4,2.97493]
[1735604378574,0.55,3361.7,3361.0,0.92868914]
[1735604378774,0.55,3361.7,3361.3,2.97501]
[1735604379278,0.03410292,3361.6,3361.3,2.97501]
[1735604379778,0.55,3361.7,3361.3,2.97501]
[1735604380145,0.55,3361.5,3361.3,2.97501]
[1735604380665,0.03410292,3361.4,3361.3,2.97501]
[1735604381143,0.55,3361.7,3361.3,2.97501]
[1735604381498,0.55,3361.5,3361.3,2.97501]
[1735604381795,0.55,3361.7,3361.0,0.92868914]
[1735604382000,0.03410292,3361.4,3361.2,2.97512]
[1735604382169,0.55,3361.7,3361.2,2.97512]
[1735604382570,0.55,3361.5,3361.2,2.97512]
[1735604383019,0.55,3361.7,3361.2,2.97512]
[1735604383190,0.03410292,3361.4,3361.2,2.97512]
[1735604383391,0.55,3361.7,3361.2,2.97512]
[1735604383795,0.55,3361.5,3361.2,2.97512]
[1735604384222,0.55,3361.7,3361.2,2.97512]
[1735604384519,0.03410292,3361.4,3361.2,2.97512]
[1735604384724,0.55,3361.7,3361.2,2.97512]
[1735604385106,0.55,3361.5,3361.2,2.97512]
[1735604385533,0.55,3361.7,3361.2,2.97512]
[1735604385739,0.03410292,3361.4,3360.8,3.0]
[1735604385952,0.55,3361.7,3361.3,2.97495]
[1735604386248,0.55,3361.5,3361.3,2.97495]
[1735604386742,0.55,3361.7,3361.3,2.97495]
[1735604387104,0.55,3361.5,3361.3,2.97495]
[1735604387481,0.55,3361.7,3361.3,2.97495]
[1735604387877,0.55,3361.7,3361.4,2.97494]
[1735604389576,0.55,3361.7,3360.9,0.361]
[1735604389577,0.55,3361.7,3361.5,2.97484]
[1735604391407,0.55,3361.7,3361.3,2.97501]
[1735604391609,0.55,3361.7,3361.4,2.97493]
[1735604393086,0.55,3361.5,3361.4,2.97493]
[1735604393449,0.55,3361.7,3361.4,2.97493]
[1735604393786,0.55,3361.5,3361.4,2.97493]
[1735604394321,0.55,3361.7,3361.4,2.97493]
[1735604394689,0.55,3361.5,3361.4,2.97493]
[1735604395157,0.55,3361.7,3361.1,2.97514]
[1735604395457,0.55,3361.5,3361.2,2.9751]
[1735604395866,0.55,3361.7,3361.2,2.9751]
[1735604396387,0.55,3361.5,3361.2,2.9751]
[1735604396976,0.55,3361.7,3361.2,2.9751]
[1735604397190,0.55,3361.5,3361.2,2.9751]
[1735604397752,0.55,3361.7,3361.2,2.9751]
[1735604398083,0.55,3361.5,3361.2,2.9751]
[1735604398690,0.55,3361.3,3361.2,2.9751]
[1735604398987,0.55,3361.7,3361.0,3.0]
[1735604399167,0.55,3361.7,3361.3,2.97499]
[1735604399370,0.55,3361.5,3361.3,2.97499]
[1735604399637,0.55,3361.3,3360.6,2.97558]
[1735604399804,0.55,3361.1,3360.8,2.97547]
[1735604400143,0.55,3360.9,3360.8,2.97547]
[1735604400351,0.58376664,3360.9,3360.8,2.97547]
[1735604400666,0.58376664,3360.9,3360.5,2.97566]
[1735604401469,0.58376664,3360.9,3360.1,2.97602]
[1735604401688,0.58376664,3360.9,3360.5,2.97566]
[1735604402214,0.58376664,3360.9,3360.4,2.9758]
[1735604402354,0.58376664,3360.9,3360.5,2.97571]
[1735604404309,0.58376664,3360.9,3360.6,2.97564]
[1735604404815,0.58376664,3360.9,3360.8,2.97548]
[1735604404953,0.03376664,3360.9,3360.8,3.570602]
[1735604405149,8.58e-06,3360.9,3360.8,9.88224336]
[1735604405354,0.02958858,3360.9,3360.8,9.88224336]
[1735604405592,8.58e-06,3360.9,3360.8,9.88224336]
[1735604405798,6.58e-06,3360.9,3360.8,9.88224336]
[1735604405950,1.24571837,3361.3,3360.9,3.0]
[1735604406150,1.24571837,3361.3,3361.2,2.97512]
[1735604407315,3.12317668,3361.7,3361.4,2.97495]
[1735604407316,0.00700099,3361.5,3361.4,2.97495]
[1735604408323,0.00700099,3361.5,3361.1,2.97518]
[1735604408616,0.00700099,3361.5,3361.1,2.97517]
[1735604408749,0.55,3361.3,3361.1,2.97517]
[1735604409685,0.58440468,3361.3,3360.9,2.97537]
[1735604410755,0.55,3361.3,3361.0,2.97529]
[1735604411173,0.55,3361.1,3361.0,2.97529]
[1735604412539,1.57975084,3361.1,3361.0,2.97529]
[1735604412743,1.60644708,3361.1,3361.0,2.97529]
[1735604413608,1.05644708,3361.1,3361.0,2.97529]
[1735604413835,1.05644708,3361.1,3361.0,3.570369]
[1735604414121,1.05644708,3361.1,3361.0,6.570369]
[1735604414959,0.02669624,3361.1,3361.0,6.570369]
[1735604415155,0.02669624,3361.1,3361.0,5.97529]
[1735604415421,1.25271936,3361.5,3361.4,2.97495]
[1735604416149,3.96890643,3361.5,3361.4,2.97495]
[1735604416343,0.55,3361.4,3361.2,2.97509]
[1735604416988,0.55,3361.4,3361.3,2.97503]
[1735604417859,1.79512561,3361.4,3361.3,2.97503]
[1735604418870,4.36900824,3361.4,3361.3,2.97503]
[1735604421762,2.57388263,3361.4,3361.3,4.182533]
[1735604422965,1.87458703,3361.5,3361.3,4.182533]
[1735604422966,0.00700099,3361.5,3361.3,4.182533]
[1735604423168,0.00700099,3361.5,3361.4,2.97495]
[1735604424819,2.58088362,3361.5,3361.4,2.97495]
[1735604425027,0.55,3361.4,3361.2,2.97511]
[1735604425272,1.09345362,3361.5,3361.4,6.58495]
[1735604425421,8.18e-06,3361.6,3361.5,5.97486]
[1735604425625,1.0107368,3361.9,3361.7,0.61]
[1735604425850,1.0107368,3361.9,3361.8,10.54219436]
[1735604426371,4.37244735,3362.7,3362.2,6.58424]
[1735604426372,1.0107368,3362.3,3362.2,6.58424]
[1735604427856,0.757,3363.1,3362.3,3.0]
[1735604428040,0.757,3363.1,3362.5,2.9739]
[1735604428769,0.55,3363.0,3362.5,2.9739]
[1735604429440,0.55,3363.0,3362.2,3.58424]
[1735604429441,0.55,3363.0,3362.6,2.97381]
[1735604430552,0.55,3363.0,3362.7,2.97372]
[1735604431665,0.55,3363.0,3362.5,2.97395]
[1735604433275,0.55,3363.0,3362.2,3.58418]
[1735604433446,0.55,3362.6,3362.3,3.0]
[1735604435325,0.55,3362.6,3362.4,2.97406]
[1735604435826,0.55,3362.6,3362.4,3.271466]
[1735604436476,0.8139,3363.3,3362.5,2.97397]
[1735604436772,0.8139,3363.3,3362.3,0.61]
[1735604437314,1.24250034,3363.4,3362.9,0.61]
[1735604437493,1.24250034,3363.4,3363.3,2.97327]
[1735604438403,0.55,3363.5,3363.1,3.0]
[1735604438574,1.24250034,3363.8,3363.4,2.97312]
[1735604440204,0.58440468,3363.7,3363.1,3.0]
[1735604440375,0.55,3363.7,3363.1,3.0]
[1735604440755,0.02611975,3363.6,3363.1,3.0]
[1735604441024,0.55,3363.8,3363.1,3.0]
[1735604441198,0.02731724,3363.7,3363.1,3.0]
[1735604441367,0.55,3363.8,3363.1,2.97338]
[1735604441551,0.02731724,3363.7,3363.1,2.97338]
[1735604441757,0.55,3363.8,3363.1,2.97338]
[1735604441999,0.02731724,3363.7,3363.1,2.97338]
[1735604442193,0.55,3363.8,3363.1,2.97338]
[1735604442369,0.02731724,3363.7,3363.1,2.97338]
[1735604442703,0.55,3363.8,3363.2,2.9733]
[1735604442994,0.02731724,3363.7,3363.4,2.97313]
[1735604443227,0.55,3363.8,3363.4,2.97313]
[1735604443699,0.55,3363.8,3363.2,2.97335]
[1735604443700,0.02725,3363.7,3363.2,2.97335]
[1735604443884,0.02725,3363.7,3363.5,2.97304]
[1735604444085,0.02725,3363.7,3363.2,2.97335]
[1735604444086,0.55,3363.8,3363.2,2.97335]
[1735604444275,0.55,3363.8,3363.3,0.6929058]
[1735604444800,0.55,3363.8,3363.4,2.97318]
[1735604445010,0.55,3363.8,3363.3,0.6929058]
[1735604445701,0.55,3363.8,3363.5,2.97305]
[1735604447165,0.55,3363.8,3363.1,0.955708]
[1735604447410,0.02725,3363.7,3362.9,0.61]
[1735604447713,0.55,3363.8,3362.9,0.61]
[1735604448006,0.02744499,3363.7,3363.1,2.97336]
[1735604449081,0.02744499,3363.7,3363.2,2.97333]
[1735604450166,0.02744499,3363.7,3362.9,0.61]
[1735604451207,0.02744499,3363.7,3363.1,2.97336]
[1735604453876,0.7683,3363.6,3362.8,3.0]
[1735604454183,0.55,3363.3,3362.8,2.97368]
[1735604454712,0.02731722,3363.2,3362.8,2.97368]
[1735604455021,0.55,3363.3,3362.9,2.97362]
[1735604455314,0.02731722,3363.2,3362.9,2.97362]
[1735604455619,0.55,3363.3,3362.9,2.97362]
[1735604455913,0.02731722,3363.2,3362.9,2.97362]
[1735604456115,0.55,3363.3,3362.9,2.97362]
[1735604461703,0.55,3363.3,3363.0,2.97351]
[1735604463075,0.55,3363.3,3362.7,3.0]
[1735604463277,0.55,3362.9,3361.9,0.61]
[1735604463548,0.55,3362.9,3361.6,4.22328088]
[1735604463549,0.55,3362.6,3362.2,2.97416]
[1735604463783,0.55,3362.6,3362.5,2.97397]
[1735604464620,0.7539,3363.7,3362.7,2.97377]
[1735604464790,0.55,3363.4,3362.5,2.97393]
[1735604464993,0.55,3363.0,3362.2,2.97424]
[1735604465312,0.55,3363.0,3362.7,2.97377]
[1735604466977,0.55,3363.0,3362.9,2.97362]
[1735604467216,0.7539,3363.5,3362.9,2.97362]
[1735604467419,0.55,3363.4,3363.0,2.97348]
[1735604470743,0.7539,3363.5,3363.0,0.358348]
[1735604470893,1.24250034,3363.7,3363.2,0.61]
[1735604471904,0.55,3363.6,3363.5,2.97301]
[1735604473411,1.99640034,3364.0,3363.5,2.97301]
[1735604474639,0.55,3363.9,3363.5,2.97301]
[1735604474866,0.55,3363.9,3363.7,2.97283]
[1735604475170,1.24250034,3364.1,3363.8,2.97281]
[1735604475367,0.55,3364.0,3363.6,2.97298]
[1735604476221,0.02639245,3363.9,3363.6,2.97298]
[1735604477027,0.55,3364.2,3363.6,2.97298]
[1735604477369,0.02684986,3364.1,3363.2,0.61]
[1735604477537,1.3039,3364.0,3363.4,2.97314]
[1735604478128,0.02684986,3363.9,3363.4,2.97314]
[1735604478332,0.02684986,3363.9,3363.2,0.61]
[1735604478333,0.02684986,3363.9,3363.3,3.0]